fUST/lending_fUST_20241021
["ID","MTS","AMOUNT","RATE_DAILY","PERIOD"]
[340557216,1729468244974,1552.9,0.00022999,60]
[340557217,1729468245485,500.0,0.00022999,60]
[340557218,1729468245524,500.0,0.00022999,60]
[340557220,1729468245873,500.0,0.00022999,60]
[340557221,1729468245955,500.0,0.00022999,60]
[340557250,1729468246583,636.49569229,0.00022999,60]
[340557302,1729468247348,500.0,0.00022999,60]
[340557326,1729468247827,500.0,0.00022999,60]
[340557343,1729468247982,500.0,0.00022999,60]
[340557361,1729468248139,500.0,0.00022999,60]
[340557368,1729468248198,500.0,0.00022999,60]
[340557396,1729468248465,500.0,0.00022999,60]
[340557435,1729468248824,500.0,0.00022999,60]
[340557453,1729468248988,796.19,0.00022999,60]
[340557463,1729468249071,500.0,0.00022999,60]
[340557471,1729468249143,500.0,0.00022999,60]
[340557501,1729468249416,368.74687477,0.00022999,60]
[340557570,1729468250216,500.0,0.00022999,60]
[340557605,1729468250535,2432.03,0.00022999,60]
[340557744,1729468251857,1109.84,0.00022999,60]
[340557755,1729468251942,500.0,0.00022999,60]
[340557760,1729468251980,501.09565438,0.00022999,60]
[340557816,1729468252629,1142.01,0.00022999,60]
[340557822,1729468252680,500.0,0.00022999,60]
[340557831,1729468252753,359.88426499,0.00022999,60]
[340557846,1729468252887,500.0,0.00022999,60]
[340557871,1729468253099,501.46333988,0.00022999,60]
[340557878,1729468253505,867.83,0.00022999,60]
[340557879,1729468253556,1228.07,0.00022999,60]
[340557880,1729468253666,929.65,0.00022999,60]
[340557884,1729468253756,1905.3,0.00022999,60]
[340557913,1729468254030,2795.04,0.00022999,60]
[340557963,1729468254519,500.0,0.00022999,60]
[340558012,1729468255063,500.0,0.00022999,60]
[340558018,1729468255109,500.0,0.00022999,60]
[340558024,1729468255161,1988.14,0.00022999,60]
[340558029,1729468255200,500.0,0.00022999,60]
[340558037,1729468255261,500.0,0.00022999,60]
[340558086,1729468255721,500.0,0.00022999,60]
[340558117,1729468256012,509.228902,0.00022999,60]
[340558188,1729468256818,500.0,0.00022999,60]
[340558194,1729468256867,1774.73,0.00022999,60]
[340558234,1729468257274,500.0,0.00022999,60]
[340558313,1729468258586,500.0,0.00022999,60]
[340558399,1729468259465,500.0,0.00022999,60]
[340558413,1729468259582,1353.88,0.00022999,60]
[340558444,1729468261191,500.0,0.00022999,60]
[340558445,1729468261337,400.87267971,0.00022999,60]
[340558446,1729468261892,2228.99,0.00022999,60]
[340558447,1729468261980,2078.62,0.00022999,60]
[340558448,1729468262088,518.17490048,0.00022999,60]
[340558449,1729468262559,500.0,0.00022999,60]
[340558450,1729468262926,2112.33,0.00022999,60]
[340558451,1729468263070,2866.15,0.00022999,60]
[340558452,1729468263313,500.0,0.00022999,60]
[340558453,1729468263952,500.0,0.00022999,60]
[340558454,1729468264345,599.9,0.00022999,60]
[340558455,1729468265048,1945.44,0.00022999,60]
[340558456,1729468265324,500.0,0.00022999,60]
[340558457,1729468267295,500.0,0.00022999,60]
[340558458,1729468268291,500.0,0.00022999,60]
[340558459,1729468268328,1115.65,0.00022999,60]
[340558460,1729468269162,500.0,0.00022999,60]
[340558461,1729468269320,1844.28,0.00022999,60]
[340558462,1729468269646,500.0,0.00022999,60]
[340558463,1729468270669,500.0,0.00022999,60]
[340558464,1729468271382,500.0,0.00022999,60]
[340558465,1729468271507,500.0,0.00022999,60]
[340558466,1729468271537,2529.61,0.00022999,60]
[340558467,1729468271684,500.0,0.00022999,60]
[340558468,1729468272568,972.18,0.00022999,60]
[340558469,1729468272654,640.95,0.00022999,60]
[340558470,1729468272862,557.74,0.00022999,60]
[340558471,1729468272958,500.0,0.00022999,60]
[340558472,1729468273321,500.0,0.00022999,60]
[340558473,1729468273357,2461.34,0.00022999,60]
[340558474,1729468273840,598.15224913,0.00022999,60]
[340558475,1729468274386,627.47862188,0.00022999,60]
[340558476,1729468274788,1087.09,0.00022999,60]
[340558477,1729468274838,1766.04,0.00022999,60]
[340558478,1729468275611,500.0,0.00022999,60]
[340558479,1729468275994,500.0,0.00022999,60]
[340558480,1729468276177,500.0,0.00022999,60]
[340558481,1729468276459,2138.42,0.00022999,60]
[340558482,1729468277161,500.0,0.00022999,60]
[340558483,1729468277717,500.0,0.00022999,60]
[340558484,1729468278484,2230.14,0.00022999,60]
[340558485,1729468278536,1360.86,0.00022999,60]
[340558486,1729468279631,717.48,0.00022999,60]
[340558487,1729468280330,500.0,0.00022999,60]
[340558489,1729468281537,1261.74,0.00022999,60]
[340558490,1729468282291,1096.92,0.00022999,60]
[340558491,1729468283131,500.0,0.00022999,60]
[340558492,1729468283552,500.0,0.00022999,60]
[340558493,1729468283670,500.0,0.00022999,60]
[340558494,1729468284396,2485.79,0.00022999,60]
[340558495,1729468284510,500.0,0.00022999,60]
[340558496,1729468284686,500.0,0.00022999,60]
[340558497,1729468284720,500.0,0.00022999,60]
[340558498,1729468284754,500.0,0.00022999,60]
[340558499,1729468284825,1282.82,0.00022999,60]
[340558500,1729468285243,500.0,0.00022999,60]
[340558501,1729468286823,2439.9,0.00022999,60]
[340558502,1729468287194,500.0,0.00022999,60]
[340558503,1729468287731,967.27,0.00022999,60]
[340558504,1729468288116,500.0,0.00022999,60]
[340558505,1729468288235,3139.0,0.00022999,60]
[340558506,1729468288339,500.0,0.00022999,60]
[340558507,1729468288431,5263.33,0.00022999,60]
[340558508,1729468288759,500.0,0.00022999,60]
[340558509,1729468288930,500.0,0.00022999,60]
[340558510,1729468289971,500.0,0.00022999,60]
[340558511,1729468290451,500.0,0.00022999,60]
[340558512,1729468290662,500.0,0.00022999,60]
[340558513,1729468291108,500.0,0.00022999,60]
[340558514,1729468291327,2776.52,0.00022999,60]
[340558515,1729468291524,2808.35,0.00022999,60]
[340558516,1729468291635,3004.11,0.00022999,60]
[340558517,1729468291836,500.0,0.00022999,60]
[340558518,1729468292343,3207.87,0.00022999,60]
[340558519,1729468292567,500.0,0.00022999,60]
[340558520,1729468293104,862.86,0.00022999,60]
[340558521,1729468293451,500.0,0.00022999,60]
[340558522,1729468293901,500.0,0.00022999,60]
[340558523,1729468294066,500.0,0.00022999,60]
[340558524,1729468294203,500.0,0.00022999,60]
[340558525,1729468294443,1415.79,0.00022999,60]
[340558526,1729468295387,500.0,0.00022999,60]
[340558527,1729468295542,2477.74,0.00022999,60]
[340558528,1729468295950,500.0,0.00022999,60]
[340558529,1729468296425,500.0,0.00022999,60]
[340558530,1729468298374,500.0,0.00022999,60]
[340558531,1729468298421,2302.53,0.00022999,60]
[340558532,1729468298517,1402.81,0.00022999,60]
[340558533,1729468298943,500.0,0.00022999,60]
[340558534,1729468299084,1942.65,0.00022999,60]
[340558535,1729468300361,1705.17,0.00022999,60]
[340558536,1729468300395,500.0,0.00022999,60]
[340558537,1729468300432,1599.94,0.00022999,60]
[340558538,1729468300510,1464.66,0.00022999,60]
[340558539,1729468301095,1061.56,0.00022999,60]
[340558540,1729468301330,592.66,0.00022999,60]
[340558541,1729468301621,1637.28,0.00022999,60]
[340558542,1729468301728,987.16,0.00022999,60]
[340558543,1729468303269,500.0,0.00022999,60]
[340558544,1729468303528,500.0,0.00022999,60]
[340558545,1729468303859,500.0,0.00022999,60]
[340558546,1729468304279,2585.08,0.00022999,60]
[340558547,1729468304376,3132.2,0.00022999,60]
[340558548,1729468304690,500.0,0.00022999,60]
[340558549,1729468305332,1961.55,0.00022999,60]
[340558550,1729468305775,856.06,0.00022999,60]
[340558551,1729468306409,500.0,0.00022999,60]
[340558552,1729468307294,501.28647693,0.00022999,60]
[340558553,1729468307655,500.0,0.00022999,60]
[340558554,1729468308169,500.0,0.00022999,60]
[340558555,1729468308756,500.0,0.00022999,60]
[340558556,1729468310859,1177.5,0.00022999,60]
[340558557,1729468311775,4165.9,0.00022999,60]
[340558558,1729468311849,2332.94,0.00022999,60]
[340558559,1729468312186,999.07,0.00022999,60]
[340558560,1729468312224,500.0,0.00022999,60]
[340558561,1729468312513,308.77469085,0.00022999,60]
[340558562,1729468312546,500.0,0.00022999,60]
[340558563,1729468313154,500.0,0.00022999,60]
[340558564,1729468313477,500.0,0.00022999,60]
[340558565,1729468313605,4045.45,0.00022999,60]
[340558566,1729468313714,500.0,0.00022999,60]
[340558567,1729468314217,2099.45,0.00022999,60]
[340558568,1729468314870,500.0,0.00022999,60]
[340558569,1729468315015,2146.88,0.00022999,60]
[340558570,1729468315907,500.0,0.00022999,60]
[340558571,1729468316350,500.0,0.00022999,60]
[340558572,1729468316988,506.49551015,0.00022999,60]
[340558573,1729468317149,500.0,0.00022999,60]
[340558574,1729468318573,500.0,0.00022999,60]
[340558575,1729468319067,500.0,0.00022999,60]
[340558576,1729468319335,514.44229439,0.00022999,60]
[340558577,1729468321194,1373.99,0.00022999,60]
[340558578,1729468321740,500.0,0.00022999,60]
[340558579,1729468322098,500.0,0.00022999,60]
[340558580,1729468322649,2614.99,0.00022999,60]
[340558581,1729468322988,2614.99,0.00022999,60]
[340558582,1729468323252,2614.99,0.00022999,60]
[340558583,1729468323537,1215.7,0.00022999,60]
[340558584,1729468323577,2614.99,0.00022999,60]
[340558585,1729468323613,500.0,0.00022999,60]
[340558586,1729468323659,500.0,0.00022999,60]
[340558587,1729468323798,2614.99,0.00022999,60]
[340558588,1729468323912,500.0,0.00022999,60]
[340558589,1729468324059,2614.99,0.00022999,60]
[340558590,1729468324091,1747.14,0.00022999,60]
[340558591,1729468324369,2614.99,0.00022999,60]
[340558592,1729468324590,989.19,0.00022999,60]
[340558593,1729468324649,2614.99,0.00022999,60]
[340558594,1729468324969,2614.99,0.00022999,60]
[340558595,1729468325240,500.0,0.00022999,60]
[340558596,1729468325273,361.12810279,0.00022999,60]
[340558597,1729468327262,2614.99,0.00022999,60]
[340558598,1729468327299,500.0,0.00022999,60]
[340558599,1729468327467,500.0,0.00022999,60]
[340558600,1729468327525,500.0,0.00022999,60]
[340558601,1729468327559,500.0,0.00022999,60]
[340558602,1729468327595,2614.99,0.00022999,60]
[340558603,1729468327630,1996.53,0.00022999,60]
[340558604,1729468327672,2363.43,0.00022999,60]
[340558605,1729468327854,500.0,0.00022999,60]
[340558606,1729468328195,2614.99,0.00022999,60]
[340558607,1729468328466,2614.99,0.00022999,60]
[340558608,1729468328625,500.0,0.00022999,60]
[340558609,1729468328816,2614.99,0.00022999,60]
[340558610,1729468329129,2614.99,0.00022999,60]
[340558611,1729468329447,2614.99,0.00022999,60]
[340558612,1729468330033,2614.99,0.00022999,60]
[340558613,1729468330066,500.0,0.00022999,60]
[340558614,1729468330341,2614.99,0.00022999,60]
[340558615,1729468330489,500.0,0.00022999,60]
[340558616,1729468330532,2614.99,0.00022999,60]
[340558617,1729468330570,5466.82,0.00022999,60]
[340558618,1729468330615,1775.65,0.00022999,60]
[340558619,1729468330651,2614.99,0.00022999,60]
[340558620,1729468330820,500.0,0.00022999,60]
[340558621,1729468330943,2614.99,0.00022999,60]
[340558622,1729468331610,500.0,0.00022999,60]
[340558623,1729468331672,3075.14,0.00022999,60]
[340558624,1729468331714,2614.99,0.00022999,60]
[340558625,1729468331910,2614.99,0.00022999,60]
[340558626,1729468332222,3596.26,0.00022999,60]
[340558627,1729468332264,2619.87,0.00022999,60]
[340558628,1729468332328,2615.13556065,0.00022999,60]
[340558629,1729468332564,500.0,0.00022999,60]
[340558630,1729468332756,507.23051482,0.00022999,60]
[340558631,1729468333893,2989.89,0.00022999,60]
[340558632,1729468334154,1769.58,0.00022999,60]
[340558633,1729468334186,500.0,0.00022999,60]
[340558634,1729468334671,503.65130529,0.00022999,60]
[340558635,1729468334854,2485.43,0.00022999,60]
[340558636,1729468335020,1265.61,0.00022999,60]
[340558637,1729468336017,1369.08,0.00022999,60]
[340558638,1729468336346,3143.52,0.00022999,60]
[340558639,1729468336968,620.61,0.00022999,60]
[340558640,1729468337862,505.40259663,0.00022999,60]
[340558641,1729468338402,500.0,0.00022999,60]
[340558642,1729468338706,1106.65,0.00022999,60]
[340558643,1729468339149,500.0,0.00022999,60]
[340558645,1729468339926,756.7,0.00022999,60]
[340558649,1729468340820,500.0,0.00022999,60]
[340558669,1729468342106,500.0,0.00022999,60]
[340558679,1729468342727,1100.61,0.00022999,60]
[340558684,1729468342925,500.0,0.00022999,60]
[340558700,1729468343983,540.42,0.00022999,60]
[340558709,1729468344349,500.0,0.00022999,60]
[340558724,1729468344943,255.65116545,0.00022999,60]
[340558743,1729468345825,500.0,0.00022999,60]
[340558744,1729468345991,500.0,0.00022999,60]
[340558750,1729468346708,500.0,0.00022999,60]
[340558771,1729468347637,500.0,0.00022999,60]
[340558791,1729468348469,500.0,0.00022999,60]
[340558808,1729468349285,11973.8,0.00022999,60]
[340558820,1729468349824,1963.8,0.00022999,60]
[340558823,1729468349948,507.74461695,0.00022999,60]
[340558826,1729468350003,500.0,0.00022999,60]
[340558828,1729468350206,500.0,0.00022999,60]
[340558829,1729468350237,943.77,0.00022999,60]
[340558834,1729468350706,500.0,0.00022999,60]
[340558836,1729468350749,500.0,0.00022999,60]
[340558845,1729468351662,500.0,0.00022999,60]
[340558848,1729468351844,832.4,0.00022999,60]
[340558854,1729468352480,500.0,0.00022999,60]
[340558855,1729468352543,1125.72,0.00022999,60]
[340558863,1729468353169,500.0,0.00022999,60]
[340558865,1729468353249,500.0,0.00022999,60]
[340558867,1729468353335,2302.1,0.00022999,60]
[340558875,1729468353744,6767.44,0.00022999,60]
[340558912,1729468356513,500.0,0.00022999,60]
[340558918,1729468356978,507.4,0.00022999,60]
[340558942,1729468358021,500.0,0.00022999,60]
[340558959,1729468359019,500.0,0.00022999,60]
[340558968,1729468359421,929.89,0.00022999,60]
[340558971,1729468359546,500.46953073,0.00022999,60]
[340558985,1729468360178,2019.96,0.00022999,60]
[340558986,1729468360208,2056.75,0.00022999,60]
[340559022,1729468362214,500.0,0.00022999,60]
[340559039,1729468363166,500.4624466,0.00022999,60]
[340559073,1729468365006,500.0,0.00022999,60]
[340559075,1729468365052,500.0,0.00022999,60]
[340559084,1729468365668,500.0,0.00022999,60]
[340559087,1729468365843,500.0,0.00022999,60]
[340559092,1729468366201,999.14,0.00022999,60]
[340559100,1729468366729,500.0,0.00022999,60]
[340559118,1729468368080,1453.96,0.00022999,60]
[340559140,1729468369809,500.0,0.00022999,60]
[340559142,1729468369873,500.0,0.00022999,60]
[340559144,1729468369905,1779.32,0.00022999,60]
[340559150,1729468370121,500.0,0.00022999,60]
[340559155,1729468370415,1423.48,0.00022999,60]
[340559157,1729468370780,2663.84,0.00022999,60]
[340559174,1729468372234,500.0,0.00022999,60]
[340559200,1729468373781,2300.54,0.00022999,60]
[340559206,1729468373972,525.6,0.00022999,60]
[340559215,1729468374284,500.0,0.00022999,60]
[340559236,1729468375244,500.0,0.00022999,60]
[340559238,1729468375330,1415.21,0.00022999,60]
[340559304,1729468379048,761.17,0.00022999,60]
[340559320,1729468379900,2563.32,0.00022999,60]
[340559322,1729468379972,500.0,0.00022999,60]
[340559337,1729468380867,500.0,0.00022999,60]
[340559344,1729468381451,500.0,0.00022999,60]
[340559356,1729468382308,5112.5,0.00022999,60]
[340559362,1729468382551,2024.63,0.00022999,60]
[340559373,1729468383093,500.0,0.00022999,60]
[340559396,1729468384275,1241.01,0.00022999,60]
[340559416,1729468385232,500.0,0.00022999,60]
[340559426,1729468386362,500.0,0.00022999,60]
[340559431,1729468386730,2805.72,0.00022999,60]
[340559451,1729468388341,500.83930935,0.00022999,60]
[340559453,1729468388387,500.0,0.00022999,60]
[340559471,1729468389198,500.0,0.00022999,60]
[340559479,1729468389587,500.0,0.00022999,60]
[340559491,1729468390031,694.63,0.00022999,60]
[340559503,1729468390585,2511.35,0.00022999,60]
[340559514,1729468390979,943.41,0.00022999,60]
[340559527,1729468391654,510.24929336,0.00022999,60]
[340559542,1729468392671,500.0,0.00022999,60]
[340559583,1729468394656,735.13,0.00022999,60]
[340559600,1729468395434,500.0,0.00022999,60]
[340559603,1729468395732,1678.03,0.00022999,60]
[340559605,1729468395769,4980.9,0.00022999,60]
[340559617,1729468396656,500.0,0.00022999,60]
[340559640,1729468397604,804.18,0.00022999,60]
[340559672,1729468399646,1309.47,0.00022999,60]
[340559690,1729468400359,549.8204926,0.00022999,60]
[340559707,1729468401317,900.36,0.00022999,60]
[340559725,1729468401988,500.0,0.00022999,60]
[340559739,1729468402490,3184.39,0.00022999,60]
[340559743,1729468402613,500.0,0.00022999,60]
[340559744,1729468403301,501.02009147,0.00022999,60]
[340559745,1729468403960,2431.09,0.00022999,60]
[340559746,1729468405104,500.0,0.00022999,60]
[340559747,1729468405789,2543.54,0.00022999,60]
[340559748,1729468406091,500.0,0.00022999,60]
[340559749,1729468406847,1891.96,0.00022999,60]
[340559750,1729468407440,2541.14,0.00022999,60]
[340559751,1729468407807,500.0,0.00022999,60]
[340559752,1729468407852,500.0,0.00022999,60]
[340559754,1729468408638,831.67,0.00022999,60]
[340559755,1729468409049,216.10335298,0.00022999,60]
[340559756,1729468409142,500.0,0.00022999,60]
[340559757,1729468410164,500.0,0.00022999,60]
[340559758,1729468410306,1500.97,0.00022999,60]
[340559759,1729468411497,174.33746002,0.00022999,60]
[340559760,1729468412552,500.0,0.00022999,60]
[340559761,1729468412692,500.0,0.00022999,60]
[340559762,1729468413697,1302.02,0.00022999,60]
[340559763,1729468413802,500.0,0.00022999,60]
[340559764,1729468414679,500.0,0.00022999,60]
[340559765,1729468414909,1961.27,0.00022999,60]
[340559766,1729468416460,500.0,0.00022999,60]
[340559767,1729468417104,3329.67,0.00022999,60]
[340559768,1729468417319,822.71,0.00022999,60]
[340559769,1729468417779,500.0,0.00022999,60]
[340559770,1729468419158,500.0,0.00022999,60]
[340559771,1729468419453,1905.3,0.00022999,60]
[340559772,1729468420687,521.65093767,0.00022999,60]
[340559773,1729468421932,500.0,0.00022999,60]
[340559774,1729468422159,4252.46,0.00022999,60]
[340559775,1729468422193,500.0,0.00022999,60]
[340559776,1729468423249,1051.21,0.00022999,60]
[340559777,1729468423279,1365.03,0.00022999,60]
[340559778,1729468426168,2699.42,0.00022999,60]
[340559779,1729468426217,5564.14,0.00022999,60]
[340559780,1729468427558,1126.45,0.00022999,60]
[340559781,1729468427713,500.0,0.00022999,60]
[340559782,1729468428446,500.0,0.00022999,60]
[340559783,1729468429568,516.46239388,0.00022999,60]
[340559784,1729468430103,500.0,0.00022999,60]
[340559785,1729468430525,976.19,0.00022999,60]
[340559786,1729468431031,1002.17,0.00022999,60]
[340559787,1729468432191,768.86,0.00022999,60]
[340559788,1729468432433,1888.39,0.00022999,60]
[340559789,1729468432987,1200.32,0.00022999,60]
[340559790,1729468433116,519.40923925,0.00022999,60]
[340559791,1729468434681,500.0,0.00022999,60]
[340559792,1729468435438,2424.2,0.00022999,60]
[340559793,1729468439435,500.0,0.00022999,60]
[340559794,1729468439520,500.0,0.00022999,60]
[340559795,1729468439812,500.0,0.00022999,60]
[340559796,1729468441400,500.0,0.00022999,60]
[340559797,1729468441736,506.3197331,0.00022999,60]
[340559798,1729468441813,500.0,0.00022999,60]
[340559799,1729468442265,943.95,0.00022999,60]
[340559800,1729468442703,851.28,0.00022999,60]
[340559801,1729468442736,1173.58,0.00022999,60]
[340559802,1729468443999,931.68,0.00022999,60]
[340559803,1729468444186,500.0,0.00022999,60]
[340559804,1729468444431,2531.37,0.00022999,60]
[340559805,1729468445042,1209.17,0.00022999,60]
[340559806,1729468445274,2660.84,0.00022999,60]
[340559807,1729468445645,500.0,0.00022999,60]
[340559808,1729468447416,500.0,0.00022999,60]
[340559809,1729468448415,8094.35,0.00022999,60]
[340559810,1729468449502,3484.78,0.00022999,60]
[340559811,1729468450879,500.0,0.00022999,60]
[340559812,1729468451946,500.0,0.00022999,60]
[340559813,1729468452912,500.0,0.00022999,60]
[340559814,1729468453504,500.0,0.00022999,60]
[340559815,1729468453788,500.0,0.00022999,60]
[340559816,1729468454019,500.0,0.00022999,60]
[340559817,1729468454273,2878.94,0.00022999,60]
[340559818,1729468454520,500.0,0.00022999,60]
[340559819,1729468455327,567.97,0.00022999,60]
[340559820,1729468455538,500.0,0.00022999,60]
[340559821,1729468456275,500.0,0.00022999,60]
[340559822,1729468457932,500.0,0.00022999,60]
[340559823,1729468457965,500.0,0.00022999,60]
[340559824,1729468458098,2338.24,0.00022999,60]
[340559825,1729468458392,500.0,0.00022999,60]
[340559826,1729468458853,2327.9,0.00022999,60]
[340559827,1729468458997,500.0,0.00022999,60]
[340559828,1729468462188,1825.92,0.00022999,60]
[340559829,1729468463136,500.0,0.00022999,60]
[340559830,1729468463301,500.0,0.00022999,60]
[340559831,1729468463753,500.0,0.00022999,60]
[340559832,1729468463866,500.0,0.00022999,60]
[340559833,1729468464068,946.03,0.00022999,60]
[340559834,1729468464408,500.0,0.00022999,60]
[340559835,1729468465734,3992.32,0.00022999,60]
[340559837,1729468467063,1017.33,0.00022999,60]
[340559838,1729468468497,4219.62,0.00022999,60]
[340559839,1729468468678,500.0,0.00022999,60]
[340559840,1729468469578,500.0,0.00022999,60]
[340559841,1729468470774,500.0,0.00022999,60]
[340559842,1729468471146,500.0,0.00022999,60]
[340559843,1729468471178,1029.55,0.00022999,60]
[340559844,1729468473233,500.0,0.00022999,60]
[340559845,1729468474016,2520.05,0.00022999,60]
[340559846,1729468474367,500.0,0.00022999,60]
[340559847,1729468475088,1148.39,0.00022999,60]
[340559848,1729468475121,500.0,0.00022999,60]
[340559849,1729468475203,500.0,0.00022999,60]
[340559850,1729468477482,500.0,0.00022999,60]
[340559851,1729468477628,516.28350984,0.00022999,60]
[340559852,1729468477680,1239.06,0.00022999,60]
[340559853,1729468479137,1915.71,0.00022999,60]
[340559854,1729468479169,500.0,0.00022999,60]
[340559855,1729468479489,500.0,0.00022999,60]
[340559856,1729468480397,500.0,0.00022999,60]
[340559857,1729468480861,10636.11,0.00022999,60]
[340559858,1729468481012,723.99,0.00022999,60]
[340559859,1729468481180,500.0,0.00022999,60]
[340559860,1729468482065,184.93853762,0.00022999,60]
[340559861,1729468482530,500.0,0.00022999,60]
[340559862,1729468482693,500.0,0.00022999,60]
[340559863,1729468484750,500.0,0.00022999,60]
[340559864,1729468485563,3074.21,0.00022999,60]
[340559865,1729468487241,2510.71,0.00022999,60]
[340559866,1729468487274,500.0,0.00022999,60]
[340559867,1729468487364,580.71,0.00022999,60]
[340559868,1729468488150,500.0,0.00022999,60]
[340559869,1729468489792,500.0,0.00022999,60]
[340559870,1729468490480,1656.65,0.00022999,60]
[340559871,1729468490521,507.94209415,0.00022999,60]
[340559872,1729468491767,500.0,0.00022999,60]
[340559873,1729468493523,1257.42,0.00022999,60]
[340559874,1729468495282,3422.75,0.00022999,60]
[340559875,1729468496360,500.0,0.00022999,60]
[340559876,1729468496740,500.0,0.00022999,60]
[340559877,1729468499155,500.0,0.00022999,60]
[340559878,1729468500325,900.28,0.00022999,60]
[340559879,1729468501228,500.0,0.00022999,60]
[340559880,1729468502090,500.0,0.00022999,60]
[340559881,1729468503969,500.0,0.00022999,60]
[340559882,1729468504975,500.0,0.00022999,60]
[340559883,1729468505775,500.0,0.00022999,60]
[340559884,1729468506265,5044.03,0.00022999,60]
[340559885,1729468506358,500.0,0.00022999,60]
[340559886,1729468506597,957.45,0.00022999,60]
[340559887,1729468507066,999.97,0.00022999,60]
[340559888,1729468507633,557.64,0.00022999,60]
[340559889,1729468508154,500.35376789,0.00022999,60]
[340559890,1729468509333,500.0,0.00022999,60]
[340559891,1729468510585,500.0,0.00022999,60]
[340559892,1729468511982,11474.89,0.00022999,60]
[340559893,1729468512721,500.0,0.00022999,60]
[340559894,1729468513678,2381.87,0.00022999,60]
[340559895,1729468514335,511.01747243,0.00022999,60]
[340559896,1729468516370,1032.7,0.00022999,60]
[340559897,1729468516536,500.0,0.00022999,60]
[340559898,1729468517646,500.0,0.00022999,60]
[340559899,1729468517797,764.13,0.00022999,60]
[340559900,1729468517834,507.45287157,0.00022999,60]
[340559901,1729468518290,1670.62,0.00022999,60]
[340559902,1729468519069,513.88904754,0.00022999,60]
[340559903,1729468519323,160.37025459,0.00022999,60]
[340559904,1729468519367,500.0,0.00022999,60]
[340559905,1729468519882,1138.4,0.00022999,60]
[340559906,1729468520159,500.0,0.00022999,60]
[340559907,1729468521447,1935.79,0.00022999,60]
[340559908,1729468521870,1695.85,0.00022999,60]
[340559910,1729468522596,500.0,0.00022999,60]